[Event "Early-Titled-Tuesday-Blitz-December-26-2023"]
[Site "Chess.com"]
[Date "2023.12.26"]
[Round "2"]
[White "NovozhilovSemen"]
[Black "Philosopherrr"]
[Result "1-0"]
[WhiteElo "2768"]
[BlackElo "2393"]
[TimeControl "180+1"]
[EndTime "8:18:26 PST"]
[Termination "NovozhilovSemen won by resignation"]

1. d4 {[%clk 0:03:00.9]} 1... Nf6 {[%clk 0:02:59.1]} 2. Nf3 {[%clk 0:02:59.5]}
2... e6 {[%clk 0:02:58.2]} 3. e3 {[%clk 0:02:59.5]} 3... d5 {[%clk 0:02:56.8]}
4. Bd3 {[%clk 0:02:56.7]} 4... Nbd7 {[%clk 0:02:54.1]} 5. O-O {[%clk 0:02:56.5]}
5... Bd6 {[%clk 0:02:54.7]} 6. b3 {[%clk 0:02:55.8]} 6... e5 {[%clk 0:02:53.4]}
7. dxe5 {[%clk 0:02:55.2]} 7... Nxe5 {[%clk 0:02:53.8]} 8. Be2 {[%clk
0:02:45.7]} 8... Qe7 {[%clk 0:02:49.1]} 9. Bb2 {[%clk 0:02:43.6]} 9... c6 {[%clk
0:02:43.1]} 10. Nbd2 {[%clk 0:02:39.3]} 10... h5 {[%clk 0:02:39.2]} 11. c4
{[%clk 0:02:34.8]} 11... Bg4 {[%clk 0:02:25.2]} 12. cxd5 {[%clk 0:02:32.2]}
12... Nxd5 {[%clk 0:02:25.4]} 13. Nxe5 {[%clk 0:02:11.4]} 13... Bxe5 {[%clk
0:02:24.6]} 14. Bxe5 {[%clk 0:02:12]} 14... Qxe5 {[%clk 0:02:24.8]} 15. Nc4
{[%clk 0:02:12.3]} 15... Qc7 {[%clk 0:02:15.7]} 16. Bf3 {[%clk 0:01:53.7]} 16...
Rd8 {[%clk 0:02:08.4]} 17. Qd4 {[%clk 0:01:50.2]} 17... Bxf3 {[%clk 0:02:06.1]}
18. gxf3 {[%clk 0:01:48.1]} 18... O-O {[%clk 0:02:06.3]} 19. Kh1 {[%clk
0:01:45.1]} 19... b5 {[%clk 0:01:54.3]} 20. Rg1 {[%clk 0:01:40.2]} 20... f6
{[%clk 0:01:48.8]} 21. Nb2 {[%clk 0:01:38.1]} 21... Rfe8 {[%clk 0:01:44.5]} 22.
Qh4 {[%clk 0:01:33.6]} 22... Qf7 {[%clk 0:01:38.4]} 23. Rg2 {[%clk 0:01:29.4]}
23... Kh7 {[%clk 0:01:04.8]} 24. Rag1 {[%clk 0:01:19.6]} 24... Rg8 {[%clk
0:01:04.6]} 25. Qe4+ {[%clk 0:01:12.8]} 25... f5 {[%clk 0:01:04.4]} 26. Qd4
{[%clk 0:01:12.4]} 26... g6 {[%clk 0:01:00.9]} 27. Nd3 {[%clk 0:01:06.8]} 27...
Qg7 {[%clk 0:00:55]} 28. Ne5 {[%clk 0:01:01.3]} 28... Ne7 {[%clk 0:00:44.6]} 29.
Qa1 {[%clk 0:00:54.7]} 29... Rd5 {[%clk 0:00:34.7]} 30. f4 {[%clk 0:00:53.7]}
30... Qf6 {[%clk 0:00:31.5]} 31. Qc3 {[%clk 0:00:44.3]} 31... Qe6 {[%clk
0:00:23.2]} 32. Qa5 {[%clk 0:00:40.3]} 32... Rg7 {[%clk 0:00:20]} 33. Qxa7
{[%clk 0:00:37.8]} 33... Rd2 {[%clk 0:00:19.8]} 34. Qa5 {[%clk 0:00:37]} 34...
Qd6 {[%clk 0:00:19.2]} 35. Qc3 {[%clk 0:00:34.8]} 35... Qd5 {[%clk 0:00:18.8]}
36. e4 {[%clk 0:00:25.1]} 36... fxe4 {[%clk 0:00:17.9]} 37. f5 {[%clk
0:00:22.2]} 37... Nxf5 {[%clk 0:00:16.8]} 38. Nxg6 {[%clk 0:00:22.4]} 38... e3
{[%clk 0:00:15.3]} 39. Nf8+ {[%clk 0:00:21.9]} 39... Kg8 {[%clk 0:00:14.5]} 40.
Ng6 {[%clk 0:00:13.2]} 40... exf2 {[%clk 0:00:12.1]} 41. Ne7+ {[%clk 0:00:08.8]}
41... Kf7 {[%clk 0:00:12.6]} 42. Nxd5 {[%clk 0:00:02.5]} 42... fxg1=Q+ {[%clk
0:00:12.8]} 43. Rxg1 {[%clk 0:00:03.1]} 43... Rxg1+ {[%clk 0:00:11.7]} 44. Kxg1
{[%clk 0:00:04]} 44... Rxd5 {[%clk 0:00:10.6]} 45. Qxc6 {[%clk 0:00:04.7]} 45...
Rd1+ {[%clk 0:00:08.8]} 46. Kf2 {[%clk 0:00:04.7]} 46... Rd2+ {[%clk 0:00:08.1]}
47. Ke1 {[%clk 0:00:05.4]} 47... Re2+ {[%clk 0:00:06.7]} 48. Kd1 {[%clk
0:00:04.9]} 48... Re6 {[%clk 0:00:07.2]} 49. Qxb5 {[%clk 0:00:04]} 49... Kf6
{[%clk 0:00:07.8]} 50. Qf1 {[%clk 0:00:04.5]} 50... Kg5 {[%clk 0:00:07.5]} 51.
Qf3 {[%clk 0:00:04.8]} 51... Re3 {[%clk 0:00:06.7]} 52. Qg2+ {[%clk 0:00:05.5]}
52... Kf4 {[%clk 0:00:07]} 53. Kc2 {[%clk 0:00:06]} 53... h4 {[%clk 0:00:07.5]}
54. Qf1+ {[%clk 0:00:05.9]} 54... Rf3 {[%clk 0:00:08]} 55. Qc4+ {[%clk
0:00:06.1]} 55... Kg5 {[%clk 0:00:08.4]} 56. Qd5 {[%clk 0:00:06.3]} 56... Rf2+
{[%clk 0:00:08.4]} 57. Kc3 {[%clk 0:00:06.4]} 57... Rxh2 {[%clk 0:00:09.1]} 58.
a4 {[%clk 0:00:06.3]} 58... Rf2 {[%clk 0:00:09.3]} 59. a5 {[%clk 0:00:06.8]}
59... Rf1 {[%clk 0:00:09.2]} 60. a6 {[%clk 0:00:07.3]} 60... Ra1 {[%clk
0:00:09.8]} 61. Qb7 {[%clk 0:00:07.7]} 61... Kf4 {[%clk 0:00:09.3]} 62. a7
{[%clk 0:00:08.1]} 62... h3 {[%clk 0:00:09.7]} 63. a8=Q {[%clk 0:00:08.4]} 63...
Rxa8 {[%clk 0:00:10.1]} 64. Qxa8 {[%clk 0:00:09.3]} 64... Ne3 {[%clk 0:00:09.9]}
65. Qh1 {[%clk 0:00:09.5]} 65... Kg3 {[%clk 0:00:10.4]} 66. Kd3 {[%clk
0:00:10.2]} 66... Ng4 {[%clk 0:00:10.4]} 67. Ke2 {[%clk 0:00:10.6]} 67... h2
{[%clk 0:00:10.3]} 68. b4 {[%clk 0:00:09.9]} 68... Nf2 {[%clk 0:00:10.2]} 69.
Qf3+ {[%clk 0:00:10.2]} 69... Kh4 {[%clk 0:00:09.9]} 70. Qxf2+ {[%clk
0:00:11.1]} 70... Kh3 {[%clk 0:00:09.3]} 71. Qf3+ {[%clk 0:00:11.6]} 71... Kh4
{[%clk 0:00:09.5]} 72. Qg2 {[%clk 0:00:12.5]} 1-0

[Event "Early-Titled-Tuesday-Blitz-December-26-2023"]
[Site "Chess.com"]
[Date "2023.12.26"]
[Round "2"]
[White "suyu28"]
[Black "JackRodgers"]
[Result "1-0"]
[WhiteElo "2790"]
[BlackElo "2560"]
[TimeControl "180+1"]
[EndTime "8:18:32 PST"]
[Termination "suyu28 won on time"]

1. d4 {[%clk 0:03:00.9]} 1... c5 {[%clk 0:03:00.9]} 2. d5 {[%clk 0:02:58.9]}
2... e5 {[%clk 0:03:00.8]} 3. Nc3 {[%clk 0:02:58.4]} 3... d6 {[%clk 0:02:58.9]}
4. e4 {[%clk 0:02:58.7]} 4... Be7 {[%clk 0:02:58.5]} 5. Bb5+ {[%clk 0:02:58.6]}
5... Nd7 {[%clk 0:02:58.6]} 6. a4 {[%clk 0:02:58]} 6... a6 {[%clk 0:02:58.8]} 7.
Bd3 {[%clk 0:02:54.3]} 7... Ngf6 {[%clk 0:02:57.8]} 8. Nge2 {[%clk 0:02:52.4]}
8... Nf8 {[%clk 0:02:56.6]} 9. O-O {[%clk 0:02:47.5]} 9... Ng6 {[%clk
0:02:55.1]} 10. f3 {[%clk 0:02:44.7]} 10... O-O {[%clk 0:02:54.8]} 11. Be3
{[%clk 0:02:44]} 11... Bd7 {[%clk 0:02:53.6]} 12. g4 {[%clk 0:02:40.2]} 12... h5
{[%clk 0:02:46.1]} 13. h3 {[%clk 0:02:32.3]} 13... hxg4 {[%clk 0:02:36.8]} 14.
hxg4 {[%clk 0:02:32.4]} 14... Bxg4 {[%clk 0:02:34.6]} 15. fxg4 {[%clk
0:02:29.1]} 15... Nxg4 {[%clk 0:02:35.5]} 16. Qd2 {[%clk 0:02:16.7]} 16... Nxe3
{[%clk 0:02:31.4]} 17. Qxe3 {[%clk 0:02:16.5]} 17... Bg5 {[%clk 0:02:31.9]} 18.
Qh3 {[%clk 0:02:15]} 18... Bf4 {[%clk 0:02:19.6]} 19. Nxf4 {[%clk 0:02:01.8]}
19... Nxf4 {[%clk 0:02:20.5]} 20. Rxf4 {[%clk 0:02:01.9]} 20... exf4 {[%clk
0:02:20.3]} 21. e5 {[%clk 0:01:56.9]} 21... Qg5+ {[%clk 0:02:16]} 22. Kf1 {[%clk
0:01:40.5]} 22... g6 {[%clk 0:02:14.3]} 23. exd6 {[%clk 0:01:31]} 23... Kg7
{[%clk 0:02:10.8]} 24. Qg2 {[%clk 0:01:25.7]} 24... Qf6 {[%clk 0:01:53.5]} 25.
Re1 {[%clk 0:01:22.5]} 25... f3 {[%clk 0:01:44.7]} 26. Qg3 {[%clk 0:01:21.8]}
26... Rh8 {[%clk 0:01:44.8]} 27. Kf2 {[%clk 0:01:06.7]} 27... Qd4+ {[%clk
0:01:34.5]} 28. Kxf3 {[%clk 0:01:06.5]} 28... Rae8 {[%clk 0:01:23.4]} 29. Re7
{[%clk 0:00:42.9]} 29... Qf6+ {[%clk 0:01:07.9]} 30. Kg2 {[%clk 0:00:40]} 30...
Rxe7 {[%clk 0:00:48.9]} 31. dxe7 {[%clk 0:00:40.9]} 31... Qxe7 {[%clk
0:00:49.8]} 32. Ne2 {[%clk 0:00:39.4]} 32... Rh5 {[%clk 0:00:45.5]} 33. d6
{[%clk 0:00:31.8]} 33... Qd8 {[%clk 0:00:43.8]} 34. Qf4 {[%clk 0:00:19.9]} 34...
b5 {[%clk 0:00:32.3]} 35. axb5 {[%clk 0:00:19.4]} 35... axb5 {[%clk 0:00:33.2]}
36. b4 {[%clk 0:00:17.7]} 36... c4 {[%clk 0:00:31.4]} 37. Qd4+ {[%clk
0:00:17.6]} 37... f6 {[%clk 0:00:24]} 38. Be4 {[%clk 0:00:16.1]} 38... Qh8
{[%clk 0:00:16.6]} 39. Ng3 {[%clk 0:00:12.5]} 39... Rh2+ {[%clk 0:00:14.2]} 40.
Kf3 {[%clk 0:00:12.9]} 40... Qh3 {[%clk 0:00:06.9]} 41. Qa7+ {[%clk 0:00:10.1]}
41... Kh6 {[%clk 0:00:06.1]} 42. Qe3+ {[%clk 0:00:10.2]} 42... Kg7 {[%clk
0:00:04.2]} 43. Qa7+ {[%clk 0:00:10.2]} 43... Kh6 {[%clk 0:00:04]} 44. Qg1
{[%clk 0:00:10.6]} 44... f5 {[%clk 0:00:02.4]} 45. Bc6 {[%clk 0:00:10]} 45...
Qg4+ {[%clk 0:00:02.4]} 46. Ke3 {[%clk 0:00:08.6]} 46... f4+ {[%clk 0:00:02.8]}
47. Kd4 {[%clk 0:00:08.4]} 47... fxg3+ {[%clk 0:00:03.1]} 48. Kc5 {[%clk
0:00:09]} 48... Qf5+ {[%clk 0:00:02.9]} 49. Kb6 {[%clk 0:00:09]} 49... Qf2+
{[%clk 0:00:03.6]} 50. Qxf2 {[%clk 0:00:09]} 50... gxf2 {[%clk 0:00:04.5]} 51.
d7 {[%clk 0:00:08.9]} 51... f1=Q {[%clk 0:00:05]} 52. d8=Q {[%clk 0:00:09.3]}
52... Qf2+ {[%clk 0:00:05.7]} 53. Ka6 {[%clk 0:00:08.4]} 53... Qf5 {[%clk
0:00:03.2]} 54. Qh8+ {[%clk 0:00:08.1]} 54... Kg5 {[%clk 0:00:03.9]} 55. Qxh2
{[%clk 0:00:08.7]} 55... Qe6 {[%clk 0:00:03.7]} 56. Qg3+ {[%clk 0:00:08.7]}
56... Kf6 {[%clk 0:00:03.8]} 57. Qf3+ {[%clk 0:00:09.1]} 57... Ke7 {[%clk
0:00:03.8]} 58. Qe4 {[%clk 0:00:09.3]} 58... c3 {[%clk 0:00:02.2]} 59. Qxe6+
{[%clk 0:00:09.2]} 59... Kxe6 {[%clk 0:00:03.1]} 60. Bxb5 {[%clk 0:00:10.1]}
60... g5 {[%clk 0:00:03.7]} 61. Bf1 {[%clk 0:00:10.7]} 61... Kd5 {[%clk
0:00:04]} 62. b5 {[%clk 0:00:11.2]} 1-0

[Event "Early-Titled-Tuesday-Blitz-December-26-2023"]
[Site "Chess.com"]
[Date "2023.12.26"]
[Round "2"]
[White "hsd2016"]
[Black "JafarTheParrot"]
[Result "0-1"]
[WhiteElo "2261"]
[BlackElo "2524"]
[TimeControl "180+1"]
[EndTime "8:18:35 PST"]
[Termination "JafarTheParrot won by resignation"]

1. e4 {[%clk 0:02:59.2]} 1... Nf6 {[%clk 0:02:59]} 2. e5 {[%clk 0:02:59.3]} 2...
Nd5 {[%clk 0:02:58.9]} 3. c4 {[%clk 0:03:00.2]} 3... Nb6 {[%clk 0:02:58.6]} 4.
d4 {[%clk 0:03:01.1]} 4... d6 {[%clk 0:02:58.4]} 5. f4 {[%clk 0:03:02]} 5... g6
{[%clk 0:02:53.4]} 6. Nc3 {[%clk 0:02:58.9]} 6... Bg7 {[%clk 0:02:53.5]} 7. Be3
{[%clk 0:02:59.6]} 7... O-O {[%clk 0:02:48.9]} 8. Rc1 {[%clk 0:02:49.8]} 8...
dxe5 {[%clk 0:02:33.3]} 9. fxe5 {[%clk 0:02:50.7]} 9... c5 {[%clk 0:02:33.5]}
10. dxc5 {[%clk 0:02:48.1]} 10... N6d7 {[%clk 0:02:33.6]} 11. e6 {[%clk
0:02:47.2]} 11... fxe6 {[%clk 0:02:33.1]} 12. Nf3 {[%clk 0:02:43.7]} 12... Nc6
{[%clk 0:02:32.6]} 13. Be2 {[%clk 0:02:41.8]} 13... b6 {[%clk 0:02:14.3]} 14.
cxb6 {[%clk 0:02:23.5]} 14... axb6 {[%clk 0:02:11.2]} 15. a3 {[%clk 0:02:19.4]}
15... Nc5 {[%clk 0:02:02.8]} 16. O-O {[%clk 0:02:17]} 16... e5 {[%clk
0:01:50.6]} 17. Qd5+ {[%clk 0:02:06.8]} 17... Qxd5 {[%clk 0:01:45.5]} 18. Nxd5
{[%clk 0:02:05.5]} 18... Nd4 {[%clk 0:01:35.6]} 19. Nxd4 {[%clk 0:01:56.5]}
19... exd4 {[%clk 0:01:36.5]} 20. Nxe7+ {[%clk 0:01:54.2]} 20... Kh8 {[%clk
0:01:36.1]} 21. Rxf8+ {[%clk 0:01:53.8]} 21... Bxf8 {[%clk 0:01:37]} 22. Bxd4+
{[%clk 0:01:54.3]} 22... Bg7 {[%clk 0:01:37]} 23. Bxg7+ {[%clk 0:01:50.3]} 23...
Kxg7 {[%clk 0:01:37.9]} 24. Bf3 {[%clk 0:01:51.1]} 24... Rb8 {[%clk 0:01:33.8]}
25. Rd1 {[%clk 0:01:29.2]} 25... Be6 {[%clk 0:01:23.2]} 26. b4 {[%clk
0:01:25.3]} 26... Na4 {[%clk 0:01:16.2]} 27. Nd5 {[%clk 0:01:12]} 27... Rd8
{[%clk 0:01:03.9]} 28. Ne3 {[%clk 0:00:55]} 28... Rc8 {[%clk 0:01:03.5]} 29. Rc1
{[%clk 0:00:10.8]} 29... Kf6 {[%clk 0:01:03]} 30. Kf2 {[%clk 0:00:10]} 30... Ke5
{[%clk 0:01:03.3]} 31. Ke2 {[%clk 0:00:10.3]} 31... Kd4 {[%clk 0:01:01.7]} 32.
Rd1+ {[%clk 0:00:07.4]} 32... Kc3 {[%clk 0:01:01.2]} 33. Bd5 {[%clk 0:00:07]}
33... Bd7 {[%clk 0:00:51.4]} 34. Rd3+ {[%clk 0:00:06.7]} 34... Kb2 {[%clk
0:00:51.9]} 35. Nd1+ {[%clk 0:00:06.7]} 35... Kc1 {[%clk 0:00:50.3]} 36. Nc3
{[%clk 0:00:04]} 36... Nb2 {[%clk 0:00:47.7]} 37. Na2+ {[%clk 0:00:03]} 37...
Kc2 {[%clk 0:00:47.9]} 38. Rd2+ {[%clk 0:00:02.4]} 38... Kb1 {[%clk 0:00:43.8]}
39. Nc3+ {[%clk 0:00:02.8]} 39... Kc1 {[%clk 0:00:44.6]} 40. Na2+ {[%clk
0:00:02.3]} 40... Kb1 {[%clk 0:00:44.3]} 41. Nc3+ {[%clk 0:00:03]} 41... Ka1
{[%clk 0:00:43.5]} 42. h3 {[%clk 0:00:03.5]} 42... Bf5 {[%clk 0:00:42.4]} 43. g4
{[%clk 0:00:02.8]} 43... Bd7 {[%clk 0:00:37.8]} 44. Rc2 {[%clk 0:00:03.4]} 44...
Nxc4 {[%clk 0:00:35.4]} 45. Rc1+ {[%clk 0:00:02.7]} 45... Kb2 {[%clk 0:00:34.9]}
46. Nd1+ {[%clk 0:00:02.1]} 46... Kb3 {[%clk 0:00:34.2]} 47. Rb1+ {[%clk
0:00:02]} 47... Ka4 {[%clk 0:00:32.8]} 48. Nc3+ {[%clk 0:00:01.8]} 48... Kxa3
{[%clk 0:00:32.5]} 49. Ne4 {[%clk 0:00:01.4]} 49... Bb5 {[%clk 0:00:30.1]} 50.
Kf2 {[%clk 0:00:01]} 50... Rf8+ {[%clk 0:00:28.8]} 51. Kg2 {[%clk 0:00:01.2]}
51... Ne5 {[%clk 0:00:29.2]} 52. Kg3 {[%clk 0:00:01.7]} 52... Bd3 {[%clk
0:00:27.7]} 53. Ra1+ {[%clk 0:00:01.4]} 53... Kb2 {[%clk 0:00:27.5]} 54. Re1
{[%clk 0:00:02.3]} 54... g5 {[%clk 0:00:27.4]} 55. Nf6 {[%clk 0:00:02.2]} 55...
Nc4 {[%clk 0:00:22.5]} 56. Ne4 {[%clk 0:00:02.5]} 56... h6 {[%clk 0:00:19.7]}
57. b5 {[%clk 0:00:02.6]} 57... Ka3 {[%clk 0:00:19.6]} 58. Nd2 {[%clk
0:00:01.8]} 58... Nxd2 {[%clk 0:00:19.3]} 59. Rd1 {[%clk 0:00:02.3]} 59... Bxb5
{[%clk 0:00:18]} 60. Rxd2 {[%clk 0:00:02.5]} 60... Kb4 {[%clk 0:00:17.2]} 61.
Rb2+ {[%clk 0:00:02.5]} 61... Kc5 {[%clk 0:00:17.5]} 62. Bf3 {[%clk 0:00:03.1]}
62... Bc4 {[%clk 0:00:17.8]} 63. Rc2 {[%clk 0:00:03.6]} 63... b5 {[%clk
0:00:18.3]} 64. h4 {[%clk 0:00:03.3]} 64... gxh4+ {[%clk 0:00:17.9]} 65. Kg2
{[%clk 0:00:03.8]} 65... Rxf3 {[%clk 0:00:15.8]} 66. Kxf3 {[%clk 0:00:03.7]}
66... b4 {[%clk 0:00:16.7]} 67. Kg2 {[%clk 0:00:02.8]} 67... b3 {[%clk
0:00:17.3]} 68. Rb2 {[%clk 0:00:03.4]} 68... Kb4 {[%clk 0:00:17.1]} 69. Kh3
{[%clk 0:00:03.9]} 69... Kc3 {[%clk 0:00:16.2]} 70. Rb1 {[%clk 0:00:04.4]} 70...
Bd3 {[%clk 0:00:15.2]} 71. Rc1+ {[%clk 0:00:03.4]} 71... Kd2 {[%clk 0:00:14.8]}
72. Rc5 {[%clk 0:00:02.5]} 72... b2 {[%clk 0:00:15.1]} 73. Rb5 {[%clk
0:00:03.2]} 73... Bxb5 {[%clk 0:00:14.8]} 0-1

[Event "Early-Titled-Tuesday-Blitz-December-26-2023"]
[Site "Chess.com"]
[Date "2023.12.26"]
[Round "2"]
[White "ilushka"]
[Black "Andrei_Skvortsov"]
[Result "1-0"]
[WhiteElo "2457"]
[BlackElo "2677"]
[TimeControl "180+1"]
[EndTime "8:18:37 PST"]
[Termination "ilushka won by resignation"]

1. Nf3 {[%clk 0:03:00.9]} 1... g6 {[%clk 0:02:57.2]} 2. e4 {[%clk 0:03:00.5]}
2... Bg7 {[%clk 0:02:56.4]} 3. d4 {[%clk 0:03:00.7]} 3... c6 {[%clk 0:02:54.4]}
4. h3 {[%clk 0:02:57.1]} 4... d5 {[%clk 0:02:54.4]} 5. Nc3 {[%clk 0:02:55.5]}
5... dxe4 {[%clk 0:02:53.1]} 6. Nxe4 {[%clk 0:02:55.5]} 6... Nf6 {[%clk
0:02:53.5]} 7. Nxf6+ {[%clk 0:02:53.9]} 7... exf6 {[%clk 0:02:54.4]} 8. Bc4
{[%clk 0:02:45.9]} 8... Qe7+ {[%clk 0:02:50.7]} 9. Qe2 {[%clk 0:02:45.2]} 9...
Be6 {[%clk 0:02:50.7]} 10. Bxe6 {[%clk 0:02:43.9]} 10... fxe6 {[%clk 0:02:49.7]}
11. O-O {[%clk 0:02:41.8]} 11... O-O {[%clk 0:02:49.8]} 12. Re1 {[%clk 0:02:40]}
12... Re8 {[%clk 0:02:50.2]} 13. Bf4 {[%clk 0:02:34]} 13... Nd7 {[%clk
0:02:46.8]} 14. Qc4 {[%clk 0:02:32]} 14... Nb6 {[%clk 0:02:44.9]} 15. Qb3 {[%clk
0:02:32.1]} 15... Nd5 {[%clk 0:02:45]} 16. Bg3 {[%clk 0:02:30.3]} 16... Qb4
{[%clk 0:02:41.4]} 17. c3 {[%clk 0:02:21.1]} 17... Qb6 {[%clk 0:02:40.7]} 18.
Nd2 {[%clk 0:02:18.2]} 18... Qxb3 {[%clk 0:02:34.3]} 19. axb3 {[%clk 0:02:17.9]}
19... Bf8 {[%clk 0:02:13.8]} 20. b4 {[%clk 0:02:10.8]} 20... b5 {[%clk
0:02:11.4]} 21. Ra6 {[%clk 0:02:08]} 21... Nb6 {[%clk 0:02:11.5]} 22. Rea1
{[%clk 0:02:02.3]} 22... Na4 {[%clk 0:02:03.6]} 23. Rxc6 {[%clk 0:01:51.3]}
23... Nxb2 {[%clk 0:01:50]} 24. Raa6 {[%clk 0:01:42.6]} 24... Kf7 {[%clk
0:01:41.6]} 25. Ne4 {[%clk 0:01:29.2]} 25... Nc4 {[%clk 0:01:32.5]} 26. Nc5
{[%clk 0:01:10.5]} 26... e5 {[%clk 0:01:22.3]} 27. Rxf6+ {[%clk 0:01:06.9]}
27... Kg7 {[%clk 0:01:20.9]} 28. dxe5 {[%clk 0:01:00]} 28... Bxc5 {[%clk
0:01:20.9]} 29. bxc5 {[%clk 0:00:59.9]} 29... Nxe5 {[%clk 0:01:19.6]} 30. Rfe6
{[%clk 0:00:44.6]} 30... Rxe6 {[%clk 0:01:13.8]} 31. Rxe6 {[%clk 0:00:45.5]}
31... Nf7 {[%clk 0:01:03.4]} 32. Ra6 {[%clk 0:00:45.3]} 32... Rc8 {[%clk
0:01:01.9]} 33. c6 {[%clk 0:00:41.1]} 33... Ng5 {[%clk 0:00:51.2]} 34. Rxa7+
{[%clk 0:00:40.4]} 34... Kf6 {[%clk 0:00:45.9]} 35. Bh4 {[%clk 0:00:34.2]} 35...
Kf5 {[%clk 0:00:46.4]} 36. Ra5 {[%clk 0:00:22.6]} 36... Ne4 {[%clk 0:00:45.2]}
37. Rxb5+ {[%clk 0:00:22.3]} 37... Ke6 {[%clk 0:00:45.3]} 38. Rb4 {[%clk
0:00:12.7]} 38... Kd5 {[%clk 0:00:43.5]} 39. Rd4+ {[%clk 0:00:11.8]} 39... Ke5
{[%clk 0:00:43.7]} 40. Bg3+ {[%clk 0:00:09.9]} 40... Kf5 {[%clk 0:00:43]} 41. c7
{[%clk 0:00:07.6]} 41... Nxg3 {[%clk 0:00:39.1]} 42. fxg3 {[%clk 0:00:08.1]}
42... Rxc7 {[%clk 0:00:38.9]} 43. c4 {[%clk 0:00:08.3]} 43... Ke5 {[%clk
0:00:38.9]} 44. Rh4 {[%clk 0:00:06.7]} 44... g5 {[%clk 0:00:37.2]} 45. Rg4
{[%clk 0:00:06]} 45... Kf5 {[%clk 0:00:37.6]} 46. Rd4 {[%clk 0:00:05.3]} 46...
h6 {[%clk 0:00:35.9]} 47. Kf2 {[%clk 0:00:04]} 47... Ke5 {[%clk 0:00:36.3]} 48.
Ke3 {[%clk 0:00:04.5]} 48... Ra7 {[%clk 0:00:36.8]} 49. Rd5+ {[%clk 0:00:04.7]}
49... Ke6 {[%clk 0:00:37.4]} 50. Kd4 {[%clk 0:00:04.7]} 50... Ra2 {[%clk
0:00:37]} 51. Rb5 {[%clk 0:00:05.3]} 51... Rxg2 {[%clk 0:00:36.4]} 52. Rb6+
{[%clk 0:00:05.8]} 52... Ke7 {[%clk 0:00:30.4]} 53. g4 {[%clk 0:00:06.2]} 53...
Rd2+ {[%clk 0:00:27.3]} 54. Kc5 {[%clk 0:00:05.8]} 54... h5 {[%clk 0:00:21.9]}
55. gxh5 {[%clk 0:00:05.8]} 55... Rh2 {[%clk 0:00:22.6]} 56. Rg6 {[%clk
0:00:04.9]} 56... Rxh3 {[%clk 0:00:21.5]} 57. Rxg5 {[%clk 0:00:05.5]} 57... Kf6
{[%clk 0:00:22]} 58. Rd5 {[%clk 0:00:06.1]} 58... Ke6 {[%clk 0:00:22.5]} 59. Kc6
{[%clk 0:00:05.3]} 59... Ra3 {[%clk 0:00:22]} 60. Rd6+ {[%clk 0:00:04.9]} 60...
Ke7 {[%clk 0:00:21.8]} 61. Rd7+ {[%clk 0:00:04.8]} 61... Ke6 {[%clk 0:00:21.4]}
62. Rb7 {[%clk 0:00:05.4]} 62... Rh3 {[%clk 0:00:20.1]} 63. Rh7 {[%clk
0:00:04.4]} 63... Rh1 {[%clk 0:00:19.2]} 64. c5 {[%clk 0:00:05]} 64... Rh2
{[%clk 0:00:19.9]} 65. Kc7 {[%clk 0:00:05.3]} 65... Rc2 {[%clk 0:00:19.8]} 66.
c6 {[%clk 0:00:05.7]} 66... Kd5 {[%clk 0:00:20.7]} 67. Rd7+ {[%clk 0:00:04.6]}
67... Kc5 {[%clk 0:00:20.6]} 68. h6 {[%clk 0:00:05]} 68... Kb5 {[%clk
0:00:21.1]} 69. Kb7 {[%clk 0:00:04]} 69... Rh2 {[%clk 0:00:19.7]} 70. c7 {[%clk
0:00:04.2]} 70... Rxh6 {[%clk 0:00:18.4]} 71. c8=Q {[%clk 0:00:05.1]} 71... Rb6+
{[%clk 0:00:18.8]} 72. Ka8 {[%clk 0:00:04.4]} 1-0